Cogmind - Beta 13 @@@ ROGUE MODE // 2024.05.28 @ 10:24:30 Player: Thqwib Result: Destroyed by Piercing Trap Performance ------------- Evolutions (0) 0 Regions Visited (3) 600 Robots Destroyed (11) 55 Value Destroyed (278) 278 Prototype IDs (0) 0 Alien Tech Used (0) 0 Bonus (30) 30 TOTAL SCORE: 963 Bonus ------- Follower Combat Kills 30 Cogmind --------- Core Integrity 0/250 Matter 300/300 Energy 148/150 System Corruption 0% Temperature Cool (0) Movement Rolling (131) Ox3 Location -10/Subcaves Parts ------- > --- POWER (1) -------- Light Angular Momentum Engine > --- PROPULSION (2) --- Wheel Subdweller Monowheel > --- UTILITY (2) ------ Huge Storage Unit > --- WEAPON (2) ------- Autogun Subdweller Machine Gun > --- INVENTORY (25) --- Ion Engine Ion Engine Light Nuclear Core Wheel Compact Wheel Scrap Shield Scrap Shield EM Pulse Gun Small Laser Beam Cannon Autogun Shotgun Shotgun Barrage Gun Battle Cannon Scrap Shield Fragment (45) Scrap Shield Fragment (36) Scrap Shield Fragment (30) Peak State ------------ > --- POWER ------------ Light Angular Momentum Engine > --- PROPULSION ------- Wheel Subdweller Monowheel > --- UTILITY ---------- Huge Storage Unit > --- WEAPON ----------- Autogun Subdweller Machine Gun > --- INVENTORY -------- Ion Engine Ion Engine Light Nuclear Core Wheel Compact Wheel Scrap Shield EM Pulse Gun Beam Cannon Autogun Shotgun Shotgun Barrage Gun Battle Cannon Scrap Shield Fragment Scrap Shield Fragment Scrap Shield Fragment [Rating: 16] Favorites ----------- Power Ion Engine Engine Ion Engine Propulsion Compact Wheel Leg Aluminum Leg Wheel Compact Wheel Utility Huge Storage Unit Storage Huge Storage Unit Processor Transport Network Coupler Weapon Small Laser Energy Gun Small Laser Ballistic Gun Autogun Build | -11 -10 -10 -10 ------- Run | Yrd Mat Min Sub Slots Evolved . | . . . . Power . | . . . . Propulsion . | . . . . Utility . | . . . . Weapon . | . . . . Parts Attached 15 | . 11 1 3 Power 4 | . 3 1 . Engine 4 | . 3 1 . Core . | . . . . Reactor . | . . . . Propulsion 5 | . 4 . 1 Treads . | . . . . Leg . | . . . . Wheel 5 | . 4 . 1 Hover . | . . . . Flight . | . . . . Utility 2 | . 2 . . Device . | . . . . Storage 1 | . 1 . . Processor 1 | . 1 . . Hackware . | . . . . Protection . | . . . . Artifact . | . . . . Weapon 4 | . 2 . 2 Energy Gun 1 | . 1 . . Energy Cannon . | . . . . Ballistic Gun 3 | . 1 . 2 Ballistic Cannon . | . . . . Launcher . | . . . . Special Weapon . | . . . . Impact Weapon . | . . . . Slashing Weapon . | . . . . Piercing Weapon . | . . . . Special Melee Weapon . | . . . . Unidentified Prototypes . | . . . . Parts Lost . | . . . . Power . | . . . . Propulsion . | . . . . Utility . | . . . . Weapon . | . . . . Highest Loss Streak . | . . . . To Critical Strikes . | . . . . Average Slot Usage (%) 91 | . 92 85 92 Engine 14 | . 14 14 14 Leg 1 | . 3 . . Wheel 26 | . 24 28 28 Storage 14 | . 14 14 14 Processor 8 | . 7 14 7 Energy Gun 11 | . 14 14 6 Ballistic Gun 13 | . 13 . 21 Naked Turns . | . . . . Heaviest Build 96 | 12 89 90 96 Greatest Support 32 | 20 32 26 30 Greatest Overweight (x) 3 | . 3 3 3 Average Overweight (x) 2 | . 2 3 3 Largest Inventory Capacity 25 | . 25 25 25 Average Capacity 23 | . 22 25 25 Most Carried 20 | . 11 12 20 Average Carried 10 | . 5 11 14 Final Capacity 25 | 8 25 25 25 Final Carried 20 | 6 11 11 20 Class Distribution -------------------- 100% | Mutant Dominant Class ---------------- Mutant | -10/Materials Mutant | -10/Mines Mutant | -10/Subcaves Resources | -11 -10 -10 -10 ----------- Run | Yrd Mat Min Sub Matter Collected 449 | 195 196 10 48 Remotely . | . . . . Salvage Created 366 | . 366 . . Parts 21 | . 21 . . Haulers Intercepted 1 | . 1 . . Recyclers Shooed 3 | . 3 . . Parts Field Recycled . | . . . . Retrieved Matter . | . . . . Parts Self-Destructed . | . . . . Prevented . | . . . . Kills | -11 -10 -10 -10 ------- Run | Yrd Mat Min Sub Combat Hostiles Destroyed 9 | . 9 . . Guns 6 | . 6 . . AOE 3 | . 3 . . Classes Destroyed 4 | . 4 . . Hauler 1 | . 1 . . Watcher 1 | . 1 . . Swarmer 3 | . 3 . . Grunt 6 | . 6 . . Best Kill Streak 3 | . 3 . . Combat Bots Only 3 | . 3 . . Max Kills in Single Turn 2 | . 2 . . Gunslinging . | . . . . Exploded 2 | . 2 . . Melee . | . . . . Uniques/NPCs Destroyed . | . . . . Combat | -11 -10 -10 -10 -------- Run | Yrd Mat Min Sub Hostile Shots Fired 40 | . 38 . 2 Missed 11 | . 11 . . Damage Taken 554 | . 397 75 82 Core 259 | . 138 57 64 Absorbed by Shields . | . . . . Core Remaining (%) 100 | 100 . . . Volleys Fired 40 | . 38 . 2 Largest 2 | . 2 . 2 Hottest 63 | . 60 . 63 Shots Fired 80 | . 76 . 4 Gun 80 | . 76 . 4 Cannon . | . . . . Launcher . | . . . . Special . | . . . . Kinetic 40 | . 38 . 2 Thermal 28 | . 26 . 2 Explosive . | . . . . Electromagnetic 12 | . 12 . . Robot Hit Streak 6 | . 6 . 2 Robot Miss Streak 4 | . 4 . 1 Penetration Max . | . . . . Secondary Targets 1 | . 1 . . Max Gunslinging Chain 1 | . 1 . . Shots Hit Robots 49 | . 47 . 2 Core Hits 22 | . 21 . 1 Critical Kills . | . . . . Critical Parts Destroyed . | . . . . Critical Strikes 1 | . 1 . . Corrupt 1 | . 1 . . Melee Attacks . | . . . . Impact . | . . . . Slashing . | . . . . Piercing . | . . . . Sneak Attacks . | . . . . Combat Hostiles . | . . . . Follow-up Attacks . | . . . . Damage Inflicted 702 | . 676 . 26 Guns 567 | . 541 . 26 Cannons . | . . . . Explosions 118 | . 118 . . Melee . | . . . . Ramming 17 | . 17 . . Kinetic 306 | . 291 . 15 Thermal 305 | . 294 . 11 Explosive . | . . . . Electromagnetic 74 | . 74 . . Impact . | . . . . Slashing . | . . . . Piercing . | . . . . Highest Corruption . | . . . . Average Corruption . | . . . . Corruption Purged . | . . . . Corruption Blocked . | . . . . Overload Shots . | . . . . Overflow Damage . | . . . . Projectiles . | . . . . Explosions . | . . . . Melee . | . . . . Knockbacks . | . . . . Impact . | . . . . Kinetic . | . . . . Secondary . | . . . . Self-Inflicted Damage 77 | . 77 . . Shots 2 | . 2 . . Rammed 2 | . 2 . . Targets Rammed 2 | . 2 . . Kicked . | . . . . Crushed . | . . . . Highest Temperature 100 | . 100 . . Average Temperature 34 | . 34 . . Received Heat Transfer 201 | . 201 . . Siege Activations . | . . . . Robots Corrupted . | . . . . Combat Hostiles . | . . . . Parts Fried . | . . . . Impact Corruptions . | . . . . Robots Melted . | . . . . Combat Hostiles . | . . . . Parts Melted . | . . . . Heat Transferred 625 | . 600 . 25 Parts Sabotaged . | . . . . Parts Stolen . | . . . . Parts Stripped . | . . . . Power Chain Reactions 2 | . 2 . . Alert | -11 -10 -10 -10 ------- Run | Yrd Mat Min Sub Peak Influence 310 | . 310 42 . Initial 42 | . . 42 . Average 138 | . 187 42 . Maximum Alert Level 1 | . 1 . . Low Security (%) 69 | . 54 100 . Level 1 30 | . 45 . . Level 2 . | . . . . Level 3 . | . . . . Level 4 . | . . . . Level 5 . | . . . . High Security . | . . . . Max Security . | . . . . Squads Dispatched 2 | . 2 . . Investigation 2 | . 2 . . Extermination . | . . . . Reinforcement . | . . . . Assault . | . . . . Garrison . | . . . . Intercept . | . . . . Searches Triggered . | . . . . Construction Impeded . | . . . . Haulers Reinforced . | . . . . Active Scanning Responses . | . . . . Cargo Convoy Interrupts . | . . . . Stealth | -11 -10 -10 -10 --------- Run | Yrd Mat Min Sub Distress Signals 2 | . 2 . . Communications Jammed . | . . . . Distress Signals . | . . . . Times Spotted 16 | . 15 . 1 Peak Tracking Total 5 | . 5 . 1 Tactical Retreats 1 | . 1 . . Traps | -11 -10 -10 -10 ------- Run | Yrd Mat Min Sub Traps Triggered 4 | . 2 1 1 Indirectly . | . . . . Trap Hack Attempts . | . . . . Triggered . | . . . . Disarmed . | . . . . Reprogrammed . | . . . . Reused . | . . . . Traps Extracted . | . . . . Installed . | . . . . Triggered . | . . . . Machines | -11 -10 -10 -10 ---------- Run | Yrd Mat Min Sub Machines Disabled . | . . . . Max in Single Turn . | . . . . Machines Repaired . | . . . . Machines Dismantled . | . . . . Machines Sabotaged . | . . . . Overloaded Fab Kills . | . . . . Hacking | -11 -10 -10 -10 --------- Run | Yrd Mat Min Sub Machines Accessed 3 | . 2 1 . Terminals 2 | . 2 . . Fabricators . | . . . . Repair Stations . | . . . . Recycling Units . | . . . . Scanalyzers . | . . . . Garrison Access . | . . . . Total Hacks 5 | . 4 1 . Successful 4 | . 3 1 . Failed 1 | . 1 . . Catastrophic 1 | . 1 . . Database Lockouts . | . . . . Manual 4 | . 4 . . Terminals 4 | . 4 . . Fabricators . | . . . . Repair Stations . | . . . . Recycling Units . | . . . . Scanalyzers . | . . . . Garrison Access . | . . . . Terminal Hacks 3 | . 2 1 . Open Door 1 | . . 1 . Branch Access Points 1 | . 1 . . Zone Layout 1 | . 1 . . Fabricator Hacks . | . . . . Repair Station Hacks . | . . . . Recycling Unit Hacks . | . . . . Scanalyzer . | . . . . Garrison Access Hacks . | . . . . Unauthorized Hacks 1 | . 1 . . Terminals 1 | . 1 . . Botnet 1 | . 1 . . Fabricators . | . . . . Repair Stations . | . . . . Recycling Units . | . . . . Scanalyzers . | . . . . Garrison Access . | . . . . Data Cores Recovered . | . . . . Used . | . . . . Hacking Detections 2 | . 2 . . Full Trace Events . | . . . . Feedback Events . | . . . . Feedback Blocked . | . . . . Robot Schematics Acquired . | . . . . Robots Built . | . . . . Authchips . | . . . . Time . | . . . . Total Robot Build Rating . | . . . . Part Schematics Acquired . | . . . . Parts Built . | . . . . Authchips . | . . . . Time . | . . . . Total Part Build Rating . | . . . . Parts Repaired . | . . . . Time . | . . . . Parts Recycled . | . . . . Recycled Matter . | . . . . Retrieved Matter . | . . . . Retrieved Components . | . . . . Parts Scanalyzed . | . . . . Part Schematics Acquired . | . . . . Parts Damaged . | . . . . Bothacking | -11 -10 -10 -10 ------------ Run | Yrd Mat Min Sub Used RIF Installer . | . . . . Robots Hacked . | . . . . Non-combat . | . . . . Combat . | . . . . Robot Hacks Applied . | . . . . Relay Couplers Released . | . . . . Fabnet Peak Effective % . | . . . . Robots Rewired . | . . . . Allies Hacked . | . . . . Hacks Repelled . | . . . . Allies | -11 -10 -10 -10 -------- Run | Yrd Mat Min Sub Total Allies 3 | . . 3 . Largest Group 3 | . . 3 3 Highest-Rated Group 40 | . . 40 40 Highest-Rated Ally 16 | . . 16 16 Total Orders . | . . . . Ally Attacks 1 | . . . 1 Total Damage 14 | . . . 14 Kills 1 | . . . 1 Allies Corrupted . | . . . . Allies Melted . | . . . . Intel | -11 -10 -10 -10 ------- Run | Yrd Mat Min Sub Robot Analysis Total . | . . . . Derelict Logs Recovered 3 | . . . 3 Drone Launches . | . . . . Drone Recoveries . | . . . . Exploration | -11 -10 -10 -10 ------------- Run | Yrd Mat Min Sub Turns Passed 1255 | . 521 260 474 Spaces Moved 802 | 1 270 189 342 Core . | . . . . Treads . | . . . . Legs 45 | 1 44 . . Wheels 757 | . 226 189 342 Hover . | . . . . Flight . | . . . . Fastest Speed 100 | 120 100 135 131 Average Speed 132 | 120 129 135 133 Slowest Speed 135 | 120 135 135 135 Overloaded Moves . | . . . . Propulsion Burnouts . | . . . . Robots Hopped . | . . . . Cave-ins Triggered . | . . . . Exploration Rate (%) 34 | 2 52 56 27 Regions Visited 3 Branch Regions 2 Pre-discovered Areas . | . . . . Known Exits Taken 1 | . 1 . . Unknown Exits Taken 2 | 1 . 1 . Scrap Searched 9 | . . 1 8 Spaces Dug . | . . . . Terrain Destroyed 9 | . 9 . . Melee . | . . . . Projectile . | . . . . AOE 9 | . 9 . . Terrain Rammed . | . . . . Walls Destroyed . | . . . . Machines Disabled . | . . . . Actions | -11 -10 -10 -10 --------- Run | Yrd Mat Min Sub Total 920 | . 367 194 359 Wait 29 | . 25 4 . Move 799 | . 269 188 342 Hop . | . . . . Pick Up 19 | . 10 . 9 Fast Attach 3 | . 3 . . Attach 3 | . 1 . 2 Detach . | . . . . Swap 9 | . 7 1 1 Drop 16 | . 12 1 3 Fire 40 | . 38 . 2 Melee . | . . . . Ram 2 | . 2 . . Kick . | . . . . Crush . | . . . . Escape Stasis . | . . . . Rewire . | . . . . Trap . | . . . . Miscellaneous . | . . . . Route ------- -11/Scrapyard -10/Materials -10/Mines (discovered 2 exits: [*Mat] / [*Sub]) -10/Subcaves (discovered 1 exit: Mat) History --------- Turn | Location | Event 1 | -11/Scrapyard | Discovered new exit (range 0) 1 | -11/Scrapyard | Entered Materials 262 | -10/Materials | Core integrity fell below 50% 284 | -10/Materials | Identified exit to Mines 310 | -10/Materials | Build established: Mutant 522 | -10/Materials | Entered Mines 660 | -10/Mines | Assisted by bots powering up and referring to "LRC-V3" 757 | -10/Mines | Discovered new exit (range 7) 773 | -10/Mines | Met a Derelict who couldn't figure out how to use a Trap Extractor 775 | -10/Mines | Discovered new exit (range 5) 782 | -10/Mines | Entered Subcaves 782 | -10/Subcaves | Accompanied by 3 allies 805 | -10/Subcaves | Learned 2 Materials zone layouts 885 | -10/Subcaves | Identified exit to Materials 1009 | -10/Subcaves | Disturbed a concealed Subdweller 1011 | -10/Subcaves | Core integrity fell below 20% 1256 | -10/Subcaves | Destroyed by Piercing Trap Last Messages --------------- 01057_ Acquired 10 matter. 01061_ Acquired Barrage Gun. 01063_ Acquired Scrap Shield. 01067_ Searching scrap... 01067_ Found Sub. Machine Gun. 01067_ Found Battle Cannon. 01067_ Found 39 Matter. 01069_ Subatomizers dissect the Sub. Monowheel. 01071_ Acquired Sml. Laser. 01080_ Subatomizers dissect the Sub. Monowheel. 01255_ Searching scrap... 01255_ Found Riot Gun. 01255_ Found Barrage Gun. 01255_ Found 12 Matter. 01256_ Searching scrap... 01256_ Found Flamer. 01256_ Found 34 Matter. 01256_ Triggered Piercing Trap. 01256_ Spikes shoot up from the floor. 01256_ Critical hit (Impale). Map ----- +----------------------------------------------------+ | | | | | | | | | | | | | | | | | | | | | | | | | | | | | | | | | ?????????????????????????????????????????????????? | | ?????????????????????????????????????????????????? | | ?????????????????????????????????????????????????? | | ?????????????????????????????????????????????????? | | ?????????????????????????????????????????????????? | | ??????????????????????##?????????????????????????? | | ??????????????????????#